bitfinex/quotes_ETHUSD_20240722
["timestamp","ask_amount","ask_price","bid_price","bid_amount"]
[1721690905087,1.21533608,3450.7,3450.5,3.0]
[1721690905969,1.21533608,3450.7,3450.6,1.046]
[1721690906684,1.21533608,3450.7,3450.6,3.94404]
[1721690907075,1.21533608,3450.8,3450.6,3.94404]
[1721690907277,1.21533608,3450.8,3450.7,1.046]
[1721690912104,1.21533608,3450.8,3450.7,3.94396]
[1721690917297,1.51880962,3450.9,3450.7,3.94396]
[1721690918039,1.82257155,3451.2,3450.7,3.94396]
[1721690918332,1.7,3451.4,3450.7,3.94396]
[1721690918498,1.82314776,3451.2,3450.8,2.89787]
[1721690918684,1.51928716,3450.9,3450.8,2.89787]
[1721690919341,1.51928716,3450.9,3450.8,8.18714]
[1721690919575,1.21563568,3451.0,3450.9,8.18698]
[1721690919712,1.21563568,3451.0,3450.9,9.23298]
[1721690919918,1.21563568,3451.1,3451.0,5.79542]
[1721690920235,1.21563568,3451.1,3451.0,9.73913]
[1721690920552,1.51928716,3451.4,3451.3,5.28885]
[1721690920845,1.51928716,3451.5,3451.3,6.33485]
[1721690921046,1.7,3451.9,3451.3,2.3914]
[1721690921256,1.82392786,3451.6,3451.2,2.89754]
[1721690921554,1.52014752,3451.3,3451.2,2.89754]
[1721690922272,1.21613115,3451.3,3451.2,8.18648]
[1721690924463,1.21613115,3451.4,3451.3,5.7949]
[1721690924758,1.21560039,3451.4,3451.3,8.108897]
[1721690925053,1.21560039,3451.5,3451.4,5.79474]
[1721690925253,1.21560039,3451.5,3451.4,12.12951]
[1721690925461,1.21560039,3451.7,3451.5,2.3914]
[1721690925662,1.21560039,3451.9,3451.7,2.3914]
[1721690925861,1.21560039,3452.0,3451.9,8.1853]
[1721690926157,1.5196139,3452.2,3451.9,3.9874]
[1721690926337,1.5196139,3452.3,3452.2,5.7934]
[1721690926538,1.5196139,3452.3,3452.2,6.8394]
[1721690926936,1.82282459,3452.6,3452.4,2.89646]
[1721690927240,1.82282459,3452.6,3452.5,2.89645]
[1721690927573,1.82221186,3453.0,3452.8,2.89616]
[1721690927750,1.7,3453.1,3452.8,3.94216]
[1721690927751,3.52221186,3453.1,3452.8,3.94216]
[1721690928250,1.7,3453.1,3452.8,3.94216]
[1721690928648,1.51773928,3452.9,3452.8,3.94216]
[1721690929161,1.51773928,3452.9,3452.5,5.28784]
[1721690929362,1.21372273,3452.6,3452.5,2.89644]
[1721690929527,1.21372273,3452.6,3452.4,2.89652]
[1721690929732,1.51773928,3452.7,3452.5,2.89645]
[1721690930049,1.5168785,3452.7,3452.5,2.89645]
[1721690930254,1.2132189,3452.6,3452.5,2.89645]
[1721690931542,0.1717214,3452.6,3452.2,10.29668]
[1721690931837,1.21288314,3452.5,3452.2,7.4]
[1721690932041,1.21288314,3452.5,3452.2,10.29669]
[1721690932445,1.21288314,3452.6,3452.3,2.8966]
[1721690932665,1.21288314,3452.6,3452.4,2.89653]
[1721690933579,1.21288314,3452.6,3452.2,2.89663]
[1721690935467,1.7,3452.7,3452.3,2.89656]
[1721690935468,2.91288314,3452.7,3452.3,2.89656]
[1721690936241,2.91288314,3452.7,3452.1,2.89678]
[1721690936441,1.21288314,3452.4,3451.7,7.4]
[1721690936696,1.7,3452.2,3451.7,10.29706]
[1721690936892,2.91288314,3452.2,3451.7,10.29706]
[1721690937171,1.21288314,3452.1,3451.7,10.29706]
[1721690937366,1.21288314,3452.1,3451.8,2.89702]
[1721690937976,1.21288314,3452.1,3451.7,7.4]
[1721690938175,2.91288314,3452.2,3451.7,7.4]
[1721690938365,1.21288314,3452.1,3451.7,7.4]
[1721690938569,1.21288314,3452.1,3451.7,10.29712]
[1721690939381,1.21288314,3452.1,3451.7,10.29704]
[1721690939679,2.33766504,3452.2,3451.7,7.4]
[1721690939680,3.55054818,3452.2,3451.7,7.4]
[1721690940067,3.55054818,3452.2,3451.7,10.29707]
[1721690940379,0.7013192,3452.1,3451.7,7.4]
[1721690940678,1.91420234,3452.1,3451.7,7.4]
[1721690941053,1.21288314,3452.0,3451.7,7.4]
[1721690941276,1.21288314,3452.0,3451.5,2.89722]
[1721690942649,1.21288314,3452.0,3451.3,15.1374]
[1721690942845,1.21288314,3452.0,3451.3,15.13738]
[1721690944686,1.21288314,3452.0,3451.3,12.24]
[1721690944890,1.21288314,3452.0,3451.6,2.89719]
[1721690945190,1.21288314,3452.0,3451.2,7.4]
[1721690945191,1.72566866,3452.0,3451.3,2.89743]
[1721690946892,1.72566866,3452.0,3451.4,2.89735]
[1721690947461,0.51278552,3452.0,3451.4,2.89735]
[1721690947664,1.7,3452.2,3451.4,2.8973]
[1721690947969,1.7,3452.2,3451.5,2.89728]
[1721690948166,1.7,3452.2,3451.4,2.89737]
[1721690948893,1.7,3452.2,3451.5,2.2927]
[1721690949491,1.7,3452.2,3451.7,2.89706]
[1721690949704,1.87,3452.2,3451.7,2.89706]
[1721690950060,1.9494,3452.1,3451.3,2.8974]
[1721690950258,1.9494,3452.1,3451.4,1.046]
[1721690951094,1.9494,3452.1,3451.4,3.94337]
[1721690951596,2.33134,3452.1,3451.4,3.94337]
[1721690951894,3.37734,3452.1,3451.2,7.4]
[1721690952097,1.9494,3451.4,3450.1,2.2927]
[1721690952308,1.7,3450.9,3450.3,1.046]
[1721690952468,1.7,3450.9,3450.4,2.89816]
[1721690952663,1.7,3450.9,3450.5,2.8981]
[1721690953116,1.7,3450.9,3450.6,2.898]
[1721690953427,1.7,3450.9,3450.8,2.2927]
[1721690953602,1.7,3451.7,3451.0,2.89763]
[1721690953769,1.7,3451.7,3451.0,3.94363]
[1721690954118,1.7,3451.3,3450.7,3.94394]
[1721690954596,1.7,3451.3,3450.8,2.89787]
[1721690954902,1.7,3451.3,3450.7,1.046]
[1721690955467,1.7,3451.3,3450.7,3.94394]
[1721690955668,2.06494,3451.3,3450.5,5.79617]
[1721690955910,2.06494,3451.3,3450.6,1.046]
[1721690956076,2.06494,3451.3,3450.6,3.94403]
[1721690956275,2.06494,3451.3,3450.6,1.046]
[1721690956495,0.206494,3451.2,3450.6,1.046]
[1721690957285,1.7,3450.9,3450.6,1.046]
[1721690958004,1.7,3450.9,3450.4,2.8982]
[1721690958005,1.7,3450.9,3450.4,3.9442]
[1721690958302,1.7,3450.9,3450.4,1.046]
[1721690958609,1.7,3450.9,3450.2,2.89836]
[1721690958813,1.7,3450.9,3450.2,3.94436]
[1721690958996,1.7,3450.9,3450.1,5.18775]
[1721690958997,1.9494,3450.8,3450.1,5.18775]
[1721690959311,1.9494,3450.8,3450.1,2.2893]
[1721690959610,1.9494,3450.8,3450.1,5.18776]
[1721690959815,2.33340494,3450.8,3450.1,5.18776]
[1721690960024,2.33340494,3450.8,3449.8,2.89868]
[1721690960025,1.7,3450.2,3449.8,2.89865]
[1721690960317,1.7,3450.2,3449.7,6.23409]
[1721690960712,1.7,3450.2,3449.7,5.18809]
[1721690961008,1.7,3450.2,3450.0,2.89853]
[1721690962181,1.7,3450.2,3449.7,2.2893]
[1721690962406,1.7,3450.2,3449.6,2.89883]
[1721690963607,1.87,3450.2,3449.6,2.89883]
[1721690963772,1.87,3450.2,3449.6,2.89888]
[1721690964313,1.87,3450.2,3449.4,5.18828]
[1721690964821,1.87,3450.2,3449.5,2.89891]
[1721690965172,1.7,3449.6,3448.6,2.89964]
[1721690965401,1.7,3449.0,3448.4,2.89983]
[1721690965905,1.7,3449.0,3448.3,2.2893]
[1721690966105,1.7,3449.0,3448.4,2.89987]
[1721690966311,1.7,3449.0,3448.3,2.2893]
[1721690966901,1.7,3449.0,3448.3,5.18922]
[1721690967216,1.7,3449.0,3448.3,0.808921]
[1721690967417,1.7,3449.0,3448.7,2.89963]
[1721690967803,1.7,3449.4,3448.7,2.89963]
[1721690968188,1.7,3449.4,3448.6,2.89971]
[1721690969514,1.7,3449.0,3448.5,2.89979]
[1721690970223,1.87,3449.0,3448.3,2.89997]
[1721690970398,1.87,3449.0,3448.6,2.89965]
[1721690970399,1.7,3449.0,3448.6,2.89965]
[1721690970719,1.7,3449.0,3448.3,2.89992]
[1721690971798,1.7,3449.4,3448.6,2.89966]
[1721690972716,1.7,3449.4,3448.7,2.89961]
[1721690972885,3.0,3449.7,3448.8,2.2893]
[1721690973089,1.7,3449.8,3448.8,2.2893]
[1721690973389,0.17,3449.7,3448.8,2.2893]
[1721690973927,0.17,3449.7,3449.1,2.89925]
[1721690974923,2.00347632,3449.8,3449.4,2.89903]
[1721690975123,1.7,3450.3,3449.4,2.89902]
[1721690975323,1.7,3450.3,3449.6,2.89882]
[1721690975546,1.7,3450.3,3449.4,2.89902]
[1721690975547,1.7,3449.8,3449.4,2.89902]
[1721690975750,1.7,3449.8,3449.5,2.89895]
[1721690976243,1.7,3449.8,3449.4,2.89902]
[1721690976444,1.7,3449.8,3449.5,2.89896]
[1721690976745,1.7,3450.2,3449.1,2.89924]
[1721690976945,1.7,3450.2,3449.7,2.89875]
[1721690978669,1.7,3450.2,3449.6,2.89887]
[1721690978851,1.7,3450.2,3449.6,2.89883]
[1721690980135,1.7,3450.2,3449.7,2.89879]
[1721690980349,1.7,3450.2,3449.9,2.89863]
[1721690980652,1.7,3450.2,3449.7,2.89873]
[1721690981019,1.7,3450.2,3449.5,2.89894]
[1721690981245,1.7,3450.2,3449.5,3.243834]
[1721690981461,1.7,3450.2,3449.7,2.89879]
[1721690981968,1.7,3450.2,3449.8,2.89865]
[1721690982119,1.7,3450.2,3449.6,2.288]
[1721690982314,1.7,3450.2,3449.5,2.89892]
[1721690982514,2.19034555,3450.2,3449.3,2.89906]
[1721690982730,2.19034555,3450.2,3449.5,2.89892]
[1721690983318,2.19034555,3450.2,3449.6,2.89887]
[1721690984270,1.7,3450.2,3449.6,2.89887]
[1721690984447,1.7,3450.2,3449.4,2.89899]
[1721690984651,1.7,3450.2,3449.6,2.89887]
[1721690985035,1.7,3450.2,3449.4,2.89898]
[1721690986343,1.7,3450.2,3449.5,2.89896]
[1721690986563,2.19034555,3450.2,3449.1,2.288]
[1721690986760,3.20345552,3450.5,3450.0,2.89847]
[1721690986959,0.30345552,3450.5,3450.4,2.89821]
[1721690987167,1.7,3451.2,3450.4,2.89821]
[1721690987571,2.00340033,3451.2,3450.4,2.89821]
[1721690987764,0.39528003,3451.1,3450.4,2.89821]
[1721690988359,1.7,3450.7,3450.0,2.89851]
[1721690988572,1.7,3450.7,3449.9,2.288]
[1721690988875,1.7,3450.7,3450.0,2.8985]
[1721690989057,1.7,3450.7,3450.1,2.89846]
[1721690989253,1.7,3450.7,3449.9,2.288]
[1721690989254,1.87,3450.7,3449.9,2.288]
[1721690989455,1.87,3450.7,3449.7,2.89875]
[1721690989779,1.87,3450.7,3449.7,2.89873]
[1721690990180,1.7,3450.2,3449.7,2.89873]
[1721690990965,1.7,3450.2,3449.8,2.8987]
[1721690991465,1.7,3450.2,3449.8,3.707243]
[1721690992180,2.90522133,3450.6,3449.9,2.89858]
[1721690992374,2.90522133,3450.6,3449.8,3.707243]
[1721690992574,2.90522133,3450.6,3449.5,2.288]
[1721690992575,1.7,3450.2,3449.6,2.89883]
[1721690992876,1.7,3450.2,3449.4,7.4]
[1721690993080,1.7,3449.8,3449.4,7.4]
[1721690993265,1.7,3449.8,3449.2,5.1656]
[1721690995271,1.7,3449.8,3449.2,2.2664]
[1721690996455,1.7,3449.8,3449.2,5.1656]
[1721690996656,1.7,3449.8,3449.2,2.2664]
[1721690997289,1.7,3449.8,3449.2,5.16562]
[1721690999159,2.90522133,3449.8,3449.2,5.16562]
[1721691000500,1.7,3449.4,3448.8,2.2898]
[1721691000995,2.90522133,3449.4,3448.6,10.29969]
[1721691001199,2.90522133,3449.4,3448.3,2.4931]
[1721691001395,2.90522133,3449.4,3448.9,2.89939]
[1721691001763,2.90522133,3449.4,3448.6,2.89972]
[1721691001966,1.20522133,3449.3,3448.7,2.89962]
[1721691002166,1.20522133,3449.3,3449.0,2.89933]
[1721691002365,1.20522133,3449.4,3449.3,2.89913]
[1721691002595,1.20522133,3449.6,3449.5,2.89897]
[1721691002841,1.2113607,3449.8,3449.3,0.79622162]
[1721691003127,2.9113607,3449.8,3449.0,2.89935]
[1721691003419,1.2113607,3449.5,3449.0,2.89935]
[1721691003995,1.2113607,3449.5,3448.9,2.89939]
[1721691004165,1.2113607,3449.5,3448.9,3.84796427]
[1721691004360,1.2113607,3449.5,3448.9,0.94857427]
[1721691004566,1.7,3449.3,3448.8,2.3677]
[1721691004765,1.2113607,3449.2,3448.7,7.4]
[1721691004972,1.2113607,3449.2,3448.7,10.29956]
[1721691005197,1.2113607,3449.1,3448.7,10.29956]
[1721691005509,1.2113607,3449.1,3448.8,2.89955]
[1721691006808,1.2113607,3449.1,3448.7,7.4]
[1721691007386,1.2113607,3449.0,3448.5,2.4898]
[1721691007586,1.2113607,3448.9,3448.5,2.4898]
[1721691007786,1.2113607,3448.9,3448.6,2.89969]
[1721691007988,1.2113607,3448.9,3448.7,2.89963]
[1721691008398,1.2113607,3448.9,3448.7,2.89958]
[1721691008577,1.2113607,3449.0,3448.7,2.89958]
[1721691008784,1.2113607,3449.1,3448.8,2.89955]
[1721691008987,1.2113607,3449.1,3449.0,2.89939]
[1721691010252,1.2113607,3449.2,3449.1,2.8993]
[1721691010613,1.2113607,3449.3,3449.1,2.8993]
[1721691011130,1.5154149,3449.4,3449.1,2.8993]
[1721691011131,1.2113607,3449.2,3449.1,2.89923]
[1721691011332,1.2113607,3449.3,3449.2,5.26912]
[1721691011531,1.5154149,3449.4,3449.2,5.26912]
[1721691011704,1.21256969,3449.3,3449.2,5.26912]
[1721691012453,1.21256969,3449.4,3449.3,2.89913]
[1721691013107,1.21256969,3449.4,3449.3,5.79826]
[1721691013434,1.21282598,3449.5,3449.4,5.7981]
[1721691013735,1.21282598,3449.6,3449.5,5.79794]
[1721691013939,1.81899823,3450.1,3449.8,5.79742]
[1721691013940,1.21282598,3449.9,3449.8,5.79742]
[1721691014113,1.21282598,3449.9,3449.5,6.226054]
[1721691014114,1.51583185,3450.1,3450.0,2.89855]
[1721691015327,3.51982396,3450.4,3450.0,2.89855]
[1721691015516,1.51650382,3450.1,3450.0,2.89855]
[1721691015718,2.12312796,3450.7,3450.5,2.89807]
[1721691015719,1.81990769,3450.7,3450.5,2.89807]
[1721691016037,2.50797909,3451.3,3450.5,2.89807]
[1721691016038,1.51671619,3450.6,3450.5,2.89807]
[1721691016206,1.51671619,3450.8,3450.6,2.89804]
[1721691016410,1.51671619,3450.8,3450.7,5.79592]
[1721691016618,1.51671619,3450.8,3450.7,2.89796]
[1721691017040,1.51671619,3450.8,3450.7,5.79592]
[1721691017243,1.51671619,3451.0,3450.8,2.89787]
[1721691017541,1.7,3451.8,3451.1,2.8976]
[1721691017836,1.81948312,3451.5,3451.3,2.89745]
[1721691018009,1.81948312,3451.6,3451.4,2.89737]
[1721691018214,3.6494,3452.2,3451.4,2.89737]
[1721691018215,1.51576523,3451.5,3451.4,2.89737]
[1721691019207,1.51576523,3451.6,3451.4,2.89737]
[1721691019821,1.51576523,3451.6,3451.0,2.89765]
[1721691020019,1.21220654,3451.4,3450.8,5.31995]
[1721691020218,2.91220654,3451.3,3450.8,5.31995]
[1721691021342,1.7,3451.3,3450.8,5.31995]
[1721691021550,1.7,3451.3,3450.9,2.89778]
[1721691021960,1.7,3451.3,3451.0,2.8977]
[1721691022763,1.21220654,3451.5,3450.8,2.4221]
[1721691023047,1.21220654,3451.5,3451.1,2.89762]
[1721691024459,1.21220654,3451.6,3451.1,2.89762]
[1721691024627,1.21220654,3451.6,3451.3,2.89744]
[1721691025044,1.21220654,3451.6,3451.1,2.89762]
[1721691027128,2.91220654,3451.7,3451.1,2.89762]
[1721691028854,0.44242619,3451.6,3450.9,2.89778]
[1721691029754,0.44242619,3451.6,3451.0,2.8977]
[1721691029960,2.91220654,3451.7,3451.0,2.8977]
[1721691030360,2.91220654,3451.7,3450.8,5.3199]
[1721691031170,1.7,3451.7,3450.9,2.89778]
[1721691031672,1.7,3451.7,3450.8,2.4221]
[1721691031889,1.21220654,3451.6,3450.8,2.4221]
[1721691032095,1.84950247,3451.6,3450.8,2.4221]
[1721691032395,1.21220654,3451.5,3450.8,5.31996]
[1721691032696,1.7,3451.2,3450.8,5.31996]
[1721691033198,1.7,3451.2,3450.8,5.31992]
[1721691033395,2.91220654,3451.6,3450.8,5.31992]
[1721691034900,2.91220654,3451.6,3451.0,2.8977]
[1721691035096,2.91220654,3451.6,3451.1,2.89761]
[1721691035301,1.7,3451.6,3451.1,2.89761]
[1721691035614,1.7,3451.6,3451.1,2.89755]
[1721691036998,1.7,3451.6,3450.9,2.89772]
[1721691037200,1.7,3451.6,3451.1,2.89757]
[1721691037872,1.7,3451.6,3451.2,2.89749]
[1721691038286,1.21220654,3452.0,3451.4,2.4571]
[1721691038479,1.21220654,3451.9,3451.4,2.4571]
[1721691038700,3.5138263,3452.1,3451.5,2.89728]
[1721691038701,1.21220654,3452.0,3451.5,2.89728]
[1721691038870,1.21220654,3452.0,3451.5,2.89722]
[1721691039072,1.51551565,3452.1,3451.6,2.89716]
[1721691039310,0.30330911,3452.1,3451.6,2.89716]
[1721691040533,0.30330911,3452.1,3451.4,5.35439]
[1721691040704,0.30330911,3452.1,3451.5,2.89729]
[1721691041018,0.30330911,3452.1,3451.5,2.89722]
[1721691041209,0.30330911,3452.1,3451.6,2.8972]
[1721691042688,0.30330911,3452.1,3451.5,2.89728]
[1721691043704,0.30330911,3452.1,3451.6,2.89718]
[1721691044606,0.30330911,3452.1,3451.9,2.4048]
[1721691044851,1.21220654,3452.5,3451.9,2.4048]
[1721691045057,1.51551245,3452.6,3451.9,5.30174]
[1721691045270,0.30330591,3452.6,3451.9,5.30174]
[1721691045568,0.77566104,3452.6,3452.0,2.89686]
[1721691046110,1.7,3452.3,3451.9,2.4048]
[1721691046356,1.7,3452.3,3451.9,5.30175]
[1721691047761,0.77566104,3452.6,3451.9,5.30175]
[1721691047762,0.77566104,3452.6,3451.9,2.4048]
[1721691047914,0.77566104,3452.6,3452.1,2.89673]
[1721691048256,0.30330591,3452.6,3452.2,2.89668]
[1721691048463,0.30330591,3452.6,3452.1,2.89673]
[1721691048773,1.9494,3453.1,3452.5,2.89645]
[1721691048774,2.91220654,3453.1,3452.5,2.89645]
[1721691048977,1.7,3453.1,3452.5,2.89637]
[1721691049263,1.7,3453.1,3452.5,5.79276]
[1721691049579,1.7,3453.1,3452.5,2.89637]
[1721691051226,1.7,3453.1,3452.5,0.522067]
[1721691051568,1.7,3453.1,3452.7,2.89622]
[1721691051970,0.30330164,3453.3,3452.9,2.89606]
[1721691052172,0.30330164,3453.3,3453.0,2.4564]
[1721691052822,0.30330164,3453.3,3453.0,5.35242]
[1721691053032,0.30330164,3453.3,3453.1,2.89593]
[1721691053265,4.7,3453.7,3453.1,2.89593]
[1721691053428,0.62622065,3453.6,3453.1,2.89593]
[1721691054173,4.7,3453.7,3453.1,2.89593]
[1721691054329,4.7,3453.7,3453.0,2.4564]
[1721691054547,1.7,3453.7,3453.0,2.4564]
[1721691055064,4.7,3453.7,3453.0,2.4564]
[1721691055272,1.7,3453.7,3453.0,2.4564]
[1721691055478,0.80742444,3453.6,3453.0,2.4564]
[1721691056228,4.7,3453.7,3453.0,2.4564]
[1721691057273,5.91220654,3453.7,3453.0,2.4564]
[1721691058763,4.7,3453.7,3453.0,2.4564]
[1721691059654,5.91220654,3453.7,3453.0,2.4564]
[1721691060079,5.91220654,3453.7,3453.0,5.35241]
[1721691060080,1.21220654,3453.6,3453.0,5.35241]
[1721691060768,1.21220654,3453.6,3453.1,2.89594]
[1721691060969,5.91220654,3453.7,3453.1,2.89594]
[1721691061297,5.91220654,3453.7,3453.2,2.89584]
[1721691061671,1.7,3453.7,3452.9,2.4207]
[1721691061905,0.6533038,3453.8,3453.5,5.15206]
[1721691062096,0.35,3453.8,3453.5,2.2565]
[1721691062472,0.35,3453.8,3453.5,5.15209]
[1721691063314,0.35,3453.8,3453.5,5.15205]
[1721691063474,0.35,3453.8,3453.6,2.89551]
[1721691063857,0.35,3453.8,3453.7,2.89544]
[1721691065775,0.35,3453.8,3453.7,8.18688]
[1721691066490,0.35,3453.8,3453.7,2.396]
[1721691067993,0.35,3453.8,3453.0,2.3351]
[1721691068166,1.7,3453.5,3453.0,2.3351]
[1721691070298,1.7,3453.5,3452.7,2.2569]
[1721691070299,1.905,3453.5,3452.7,2.2569]
[1721691070995,2.049,3453.5,3452.7,2.2569]
[1721691071404,1.7,3453.1,3452.7,2.2569]
[1721691072205,1.7,3453.1,3452.2,2.3416]
[1721691072360,1.7,3452.7,3452.2,2.3416]
[1721691072957,1.7,3452.7,3452.2,5.23828]
[1721691073161,1.7,3452.7,3452.2,2.3416]
[1721691073394,1.7,3452.7,3452.2,5.23825]
[1721691073602,1.7,3452.7,3452.5,2.89641]
[1721691073897,4.21220654,3453.2,3452.2,2.3416]
[1721691073898,3.0,3453.2,3452.2,2.3416]
[1721691074099,1.7,3453.3,3452.5,2.89639]
[1721691074392,1.7,3453.3,3452.6,2.89636]
[1721691074591,1.7,3453.3,3452.3,2.89655]
[1721691074764,1.7,3453.3,3452.5,2.89639]
[1721691075296,2.52106065,3453.3,3452.4,2.89653]
[1721691075501,2.52106065,3453.3,3452.2,5.23823]
[1721691075706,2.52106065,3453.3,3452.4,2.89647]
[1721691076097,2.52106065,3453.3,3452.5,2.89644]
[1721691076298,2.52106065,3453.3,3452.2,2.3416]
[1721691076299,1.7,3453.3,3452.8,2.89614]
[1721691076502,0.144,3453.5,3453.0,2.89596]
[1721691076877,0.144,3453.5,3453.1,2.89588]
[1721691077278,0.144,3453.5,3453.1,5.79174]
[1721691077577,0.144,3453.5,3453.1,2.89586]
[1721691077980,0.144,3453.5,3453.2,2.89584]
[1721691078203,0.144,3453.5,3453.0,2.89596]
[1721691078500,1.7,3453.3,3452.7,2.3834]
[1721691079478,1.7,3453.3,3452.7,5.2796]
[1721691079691,1.7,3453.3,3452.8,2.89617]
[1721691080395,1.7,3453.3,3452.7,2.3834]
[1721691082055,1.7,3453.3,3452.8,2.89619]
[1721691082358,1.7,3453.3,3452.7,2.3834]
[1721691083603,1.7,3453.3,3452.7,5.27966]
[1721691084000,1.7,3453.3,3452.7,5.27961]
[1721691084334,1.7,3453.3,3452.7,2.3834]
[1721691085324,1.21220654,3453.2,3452.7,2.3834]
[1721691085519,1.21220654,3453.2,3452.4,2.89653]
[1721691085720,1.7,3452.9,3452.3,2.4746]
[1721691085921,2.91220654,3452.9,3452.1,2.89677]
[1721691086105,1.21220654,3452.8,3452.1,2.89677]
[1721691088101,1.21220654,3452.7,3452.1,2.89672]
[1721691088306,1.21220654,3452.8,3452.3,2.89661]
[1721691088506,1.21220654,3452.7,3452.1,6.615392]
[1721691088738,1.21220654,3452.7,3452.2,2.89669]
[1721691088902,1.21220654,3452.8,3452.2,2.89669]
[1721691089105,1.21220654,3452.7,3452.2,2.89669]
[1721691089301,1.21220654,3452.7,3452.3,2.8966]
[1721691089509,1.21220654,3452.7,3452.3,2.89654]
[1721691089710,1.21220654,3452.7,3452.4,2.291]
[1721691089911,1.21220654,3452.7,3452.4,5.18751]
[1721691090210,1.21220654,3452.8,3452.5,2.89645]
[1721691090953,1.21220654,3452.7,3452.4,5.18751]
[1721691091122,1.21220654,3452.6,3452.4,2.291]
[1721691091323,1.21220654,3452.5,3452.3,2.89661]
[1721691091528,1.21220654,3452.5,3452.1,5.26084]
[1721691091529,1.21220654,3452.5,3452.1,2.3641]
[1721691091717,1.21220654,3452.4,3452.1,2.3641]
[1721691091910,1.21220654,3452.5,3452.2,2.89664]
[1721691092161,1.21220654,3452.4,3452.1,2.3641]
[1721691092330,1.21220654,3452.3,3452.1,8.1576]
[1721691092527,1.21220654,3452.4,3452.1,8.15755]
[1721691092723,1.21220654,3452.4,3452.1,5.26081]
[1721691092933,1.21220654,3452.4,3452.2,2.8967]
[1721691093231,1.21220654,3452.5,3452.3,2.89655]
[1721691093646,1.21220654,3452.5,3452.4,2.89653]
[1721691094119,1.21220654,3452.5,3452.4,5.79306]
[1721691094325,1.21220654,3452.6,3452.5,5.7929]
[1721691094533,1.21220654,3452.6,3452.5,6.37219]
[1721691094958,1.51618572,3452.8,3452.6,2.89636]
[1721691096075,2.0033108,3453.3,3452.6,2.89636]
[1721691096276,1.51603681,3452.8,3452.6,2.89636]
[1721691096576,1.51603681,3452.8,3452.7,2.89628]
[1721691096870,1.51603681,3452.8,3452.7,8.14726]
[1721691097014,1.51603681,3452.9,3452.8,2.8962]
[1721691097215,1.51603681,3452.9,3452.8,5.7924]
[1721691097550,1.51603681,3453.0,3452.9,2.89611]
[1721691097739,1.51603681,3453.1,3452.9,2.89611]
[1721691097915,1.51603681,3453.1,3453.0,2.89603]
[1721691099145,1.51673754,3453.1,3453.0,2.89603]
[1721691099551,1.51667705,3453.1,3453.0,2.89603]
[1721691100728,1.51667705,3453.1,3452.9,3.421151]
[1721691101036,1.51667705,3453.1,3453.0,2.89603]
[1721691101252,1.51667705,3453.1,3453.0,5.79206]
[1721691101436,1.51667705,3453.1,3453.0,2.89603]
[1721691102068,0.144,3453.5,3453.1,2.89589]
[1721691102268,1.51668738,3453.2,3453.1,2.89589]
[1721691103145,1.51668738,3453.3,3453.2,2.89586]
[1721691103328,0.144,3453.5,3453.3,5.34718]
[1721691103329,1.51668738,3453.4,3453.3,5.34718]
[1721691103529,0.144,3453.5,3453.3,5.34718]
[1721691103942,1.51672193,3453.4,3453.3,5.34718]
[1721691104791,0.144,3453.5,3453.3,5.34718]
[1721691104948,1.51651225,3453.4,3453.3,5.34718]
[1721691105273,1.51639783,3453.4,3453.3,5.34718]
[1721691106878,0.144,3453.5,3452.9,2.89605]
[1721691107109,1.51639618,3453.3,3453.1,2.89592]
[1721691108294,1.51633761,3453.3,3453.1,2.89592]
[1721691108646,1.51633761,3453.3,3453.1,5.7918]
[1721691108892,1.51633761,3453.3,3453.1,2.89588]
[1721691109044,1.21312355,3453.2,3452.9,2.89606]
[1721691109247,1.21311948,3453.1,3453.0,2.89596]
[1721691112104,1.51704984,3453.2,3453.0,2.89596]
[1721691113186,1.51704984,3453.3,3453.1,2.89594]
[1721691113387,1.51704984,3453.2,3453.1,2.89594]
[1721691114322,0.144,3453.5,3453.1,2.89594]
[1721691114641,1.51784706,3453.2,3453.1,2.89594]
[1721691115558,1.51784706,3453.2,3453.0,1.045]
[1721691116263,1.51784706,3453.2,3453.0,3.94101]
[1721691116658,1.21409497,3453.1,3453.0,3.94101]
[1721691117713,1.51746907,3453.2,3453.0,1.045]
[1721691118416,1.51746907,3453.2,3453.0,3.94098]
[1721691118572,1.51746907,3453.1,3453.0,3.94098]
[1721691118904,1.51746907,3453.2,3453.0,3.94098]
[1721691119556,1.51746907,3453.1,3453.0,3.94098]
[1721691120583,1.51789488,3453.1,3453.0,3.94098]
[1721691121329,1.51789488,3453.1,3453.0,1.045]
[1721691121531,1.7,3453.2,3452.6,3.435]
[1721691121679,1.21421625,3452.7,3452.6,3.435]
[1721691121874,1.21421625,3452.7,3452.1,4.162841]
[1721691121875,1.51779568,3452.8,3452.4,1.045]
[1721691122083,1.51779568,3452.8,3452.3,2.3008]
[1721691122084,1.21417172,3452.5,3452.3,2.3008]
[1721691122283,1.21417172,3452.5,3452.0,2.89681]
[1721691122284,1.51779568,3452.4,3452.0,3.3437]
[1721691122586,1.51779568,3452.4,3451.8,1.045]
[1721691122587,1.51779568,3452.2,3451.8,1.045]
[1721691122787,1.21396272,3452.0,3451.8,1.045]
[1721691123023,1.21396272,3451.9,3451.8,1.045]
[1721691123229,1.21396272,3452.0,3451.8,1.045]
[1721691123526,1.21396272,3451.9,3451.8,1.045]
[1721691124322,1.21396272,3452.0,3451.8,1.045]
[1721691124535,1.51747367,3452.1,3451.8,1.045]
[1721691124536,1.21396272,3451.9,3451.8,1.045]
[1721691125185,1.21396272,3452.0,3451.8,1.045]